[Event "54th Rubinstein Memorial-A 2018"]
[Site "Polanica-Zdroj"]
[Date "2018.08.21"]
[Round "4"]
[White "Bukojemski, Adam"]
[Black "Adamczewski, Maciej"]
[Result "1-0"]
[ECO "C11"]
[WhiteElo "2233"]
[BlackElo "2061"]
[Annotator "NA"]
[PlyCount "97"]
[EventDate "2018.08.18"]
[EventType "swiss"]
[EventCountry "POL"]
[SourceTitle "playchess.com"]
[Source "ChessBase"]
[SourceQuality "1"]
[TimeControl "40/5400+30:1800+30"]

1. e4 {[%emt 0:04:25]} e6 {[%emt 0:00:00]} 2. d4 {[%emt 0:00:21]} d5 {[%emt 0:00:00]} 3. Nc3 {[%emt 0:00:10]} Nf6 {[%emt 0:00:00]} 4. e5 {[%emt 0:00:35]} Nfd7 {[%emt 0:00:01]} 5. f4 {[%emt 0:00:12]} c5 {[%emt 0:00:05]} 6. Nf3 {[%emt 0:00:10]} Nc6 {[%emt 0:00:07]} 7. Be3 {[%emt 0:00:08]} Be7 {[%emt 0:00:17]} 8. Qd2 {[%emt 0:01:16]} O-O {[%emt 0:00:10]} 9. dxc5 {[%emt 0:00:31]} Qa5 {[%emt 0:01:58]} 10. O-O-O {[%emt 0:01:47]} b6 {[%emt 0:00:30]} 11. Bb5 {[%emt 0:07:28]} Bb7 {[%emt 0:01:22]} 12. Kb1 {[%emt 0:00:42]} Bxc5 {[%emt 0:04:31]} 13. Bxc5 {[%emt 0:04:42]} Nxc5 {[%emt 0:01:55]} 14. Bxc6 {[%emt 0:02:48]} Bxc6 {[%emt 0:00:12]} 15. Nd4 {[%emt 0:00:21]} Rac8 {[%emt 0:02:43]} 16. h4 {[%emt 0:00:28]} f6 {[%emt 0:08:30]} 17. Qe3 {[%emt 0:01:30]} f5 {[%emt 0:15:15]} 18. g4 {[%emt 0:00:45]} fxg4 {[%emt 0:01:58]} 19. h5 {[%emt 0:02:34]} b5 {[%emt 0:01:05]} 20. Rdg1 {[%emt 0:07:10]} b4 {[%emt 0:03:36]} 21. Nce2 {[%emt 0:00:13]} Bb5 {[%emt 0:01:42]} 22. Nc1 {[%emt 0:03:09]} Ne4 {[%emt 0:07:15]} 23. Rxg4 {[%emt 0:01:41]} Qb6 {[%emt 0:20:52]} 24. Rhg1 {[%emt 0:03:28]} Rf7 {[%emt 0:02:11]} 25. R1g2 {[%emt 0:05:51]} Bf1 {[%emt 0:05:51]} 26. Rg1 {[%emt 0:13:47]} Bc4 {[%emt 0:07:21]} 27. R4g2 {[%emt 0:03:21]} Kh8 {[%emt 0:02:50]} 28. Rg6 {[%emt 0:10:44]} Re8 {[%emt 0:01:17]} 29. f5 {[%emt 0:00:49]} hxg6 {[%emt 0:02:54]} 30. hxg6 {[%emt 0:01:05]} Rxf5 {[%emt 0:00:14]} 31. Rh1+ {[%emt 0:04:20]} Kg8 {[%emt 0:00:06]} 32. Qh3 {[%emt 0:00:11]} Kf8 {[%emt 0:00:08]} 33. Qh8+ {[%emt 0:04:32]} Ke7 {[%emt 0:00:04]} 34. Qxg7+ {[%emt 0:00:59]} Kd8 {[%emt 0:00:04]} 35. Rh7 {[%emt 0:00:27]} Nc5 {[%emt 0:02:48]} 36. Nxf5 {[%emt 0:07:22]} exf5 {[%emt 0:00:05]} 37. Qf6+ {[%emt 0:00:16]} Qxf6 {[%emt 0:03:18]} 38. exf6 {[%emt 0:00:02]} d4 {[%emt 0:00:37]} 39. f7 {[%emt 0:00:43]} Bxf7 {[%emt 0:00:27]} 40. Rxf7 {[%emt 0:00:00]} Rg8 {[%emt 0:00:00]} 41. Rxf5 {[%emt 0:02:36]} Ne6 {[%emt 0:08:47]} 42. Rb5 {[%emt 0:03:37]} Rxg6 {[%emt 0:01:44]} 43. Rxb4 {[%emt 0:00:15]} Rg1 {[%emt 0:03:28]} 44. b3 {[%emt 0:00:19]} Rd1 {[%emt 0:09:42]} 45. Kb2 {[%emt 0:06:10]} Nf4 {[%emt 0:00:19]} 46. Ra4 {[%emt 0:04:40]} Rd2 {[%emt 0:00:17]} 47. Rxa7 {[%emt 0:00:56]} d3 {[%emt 0:00:12]} 48. Nxd3 {[%emt 0:00:08]} Nxd3+ {[%emt 0:00:08]} 49. Kc3 {[%emt 0:00:04]} 1-0

[Event "54th Rubinstein Memorial-A 2018"]
[Site "Polanica-Zdroj"]
[Date "2018.08.21"]
[Round "4"]
[White "Lapaj, Mateusz"]
[Black "Harazinska, Magdalena"]
[Result "1/2-1/2"]
[ECO "B23"]
[WhiteElo "2198"]
[BlackElo "2035"]
[Annotator "NA"]
[PlyCount "91"]
[EventDate "2018.08.18"]
[EventType "swiss"]
[EventCountry "POL"]
[SourceTitle "playchess.com"]
[Source "ChessBase"]
[SourceQuality "1"]
[TimeControl "40/5400+30:1800+30"]

1. e4 {[%emt 0:00:00]} c5 {[%emt 0:00:00]} 2. Nc3 {[%emt 0:00:00]} Nc6 {[%emt 0:00:00]} 3. Nge2 {[%emt 0:00:00]} Nd4 {[%emt 0:00:09]} 4. Nxd4 {[%emt 0:21:24]} cxd4 {[%emt 0:00:02]} 5. Nb5 {[%emt 0:01:26]} e5 {[%emt 0:05:50]} 6. Qh5 {[%emt 0:37:02]} d6 {[%emt 0:07:46]} 7. Bc4 {[%emt 0:01:08]} g6 {[%emt 0:04:27]} 8. Qf3 {[%emt 0:00:07]} Be6 {[%emt 0:12:24]} 9. Bxe6 {[%emt 0:01:36]} fxe6 {[%emt 0:00:02]} 10. c3 {[%emt 0:01:33]} a6 {[%emt 0:02:35]} 11. Na3 {[%emt 0:00:50]} Bg7 {[%emt 0:20:53]} 12. cxd4 {[%emt 0:04:21]} exd4 {[%emt 0:00:07]} 13. Qb3 {[%emt 0:00:36]} Qd7 {[%emt 0:04:02]} 14. Nc4 {[%emt 0:02:56]} Rd8 {[%emt 0:05:49]} 15. Nb6 {[%emt 0:00:43]} Qe7 {[%emt 0:07:26]} 16. Qa4+ {[%emt 0:03:41]} Kf7 {[%emt 0:00:06]} 17. O-O {[%emt 0:03:48]} Nf6 {[%emt 0:02:32]} 18. Qxd4 {[%emt 0:10:21]} Rhf8 {[%emt 0:05:18]} 19. Qb4 {[%emt 0:01:14]} Kg8 {[%emt 0:01:53]} 20. h3 {[%emt 0:00:38]} Nh5 {[%emt 0:02:17]} 21. d3 {[%emt 0:00:31]} Qf6 {[%emt 0:01:03]} 22. Qd2 {[%emt 0:04:59]} Qd4 {[%emt 0:03:09]} 23. Qe3 {[%emt 0:00:41]} Nf4 {[%emt 0:01:51]} 24. Qxd4 {[%emt 0:01:04]} Ne2+ {[%emt 0:01:15]} 25. Kh2 {[%emt 0:00:07]} Bxd4 {[%emt 0:00:30]} 26. Be3 {[%emt 0:00:19]} Bxb2 {[%emt 0:00:21]} 27. Rab1 {[%emt 0:00:01]} Bd4 {[%emt 0:01:00]} 28. Bxd4 Nxd4 {[%emt 0:00:02]} 29. f3 {[%emt 0:01:00]} Rf7 {[%emt 0:01:24]} 30. Rfc1 {[%emt 0:00:01]} Nc6 {[%emt 0:01:43]} 31. Kg3 {[%emt 0:00:55]} Kg7 {[%emt 0:01:24]} 32. Kf2 {[%emt 0:00:11]} Kf6 {[%emt 0:00:51]} 33. Ke3 {[%emt 0:00:01]} d5 {[%emt 0:03:26]} 34. Na4 {[%emt 0:00:28]} d4+ {[%emt 0:02:33]} 35. Kd2 {[%emt 0:00:01]} Rdd7 {[%emt 0:01:08]} 36. Nc5 {[%emt 0:00:05]} Rc7 {[%emt 0:00:03]} 37. Rb6 {[%emt 0:01:26]} a5 {[%emt 0:01:27]} 38. a3 {[%emt 0:02:35]} Ke5 {[%emt 0:00:53]} 39. Nxb7 {[%emt 0:00:42]} Rxb7 {[%emt 0:01:08]} 40. Rcxc6 {[%emt 0:00:00]} Kf4 {[%emt 0:00:00]} 41. Rxe6 {[%emt 0:13:37]} Kg3 {[%emt 0:03:56]} 42. Red6 {[%emt 0:03:08]} Rxb6 {[%emt 0:02:36]} 43. Rxb6 {[%emt 0:00:02]} Kxg2 {[%emt 0:00:15]} 44. Rd6 {[%emt 0:00:34]} Kxh3 {[%emt 0:00:15]} 45. Rxd4 {[%emt 0:09:26]} Kg3 {[%emt 0:00:19]} 46. e5 {[%emt 0:04:16]} 1/2-1/2

[Event "54th Rubinstein Memorial-A 2018"]
[Site "Polanica-Zdroj"]
[Date "2018.08.21"]
[Round "4"]
[White "Kaminski, Jan"]
[Black "Jaskolka, Tomasz"]
[Result "0-1"]
[ECO "B13"]
[WhiteElo "2026"]
[BlackElo "2165"]
[Annotator "NA"]
[PlyCount "116"]
[EventDate "2018.08.18"]
[EventType "swiss"]
[EventCountry "POL"]
[SourceTitle "playchess.com"]
[Source "ChessBase"]
[SourceQuality "1"]
[TimeControl "40/5400+30:1800+30"]

1. e4 c6 2. d4 d5 3. exd5 cxd5 4. Bd3 Nc6 5. c3 Nf6 6. Bf4 g6 7. Nd2 Bg7 8. Ngf3 Nh5 9. Be3 Qd6 10. Qb3 Bd7 11. h3 Na5 12. Qc2 b5 13. O-O O-O 14. Nb3 Nc4 15. Nc5 Rfc8 16. b4 a5 17. Bxc4 dxc4 18. Ne5 Bc6 19. Nxc6 Qxc6 20. a3 Nf6 21. Qd2 Nd5 22. Bg5 Rc7 23. Qb2 Rca7 24. f4 Qd6 25. Ne4 Qc6 26. Nc5 Qd6 27. Ne4 Qc6 28. Nc5 e6 29. bxa5 Nxc3 30. Qxc3 Qxc5 31. dxc5 Bxc3 32. Rab1 Bd4+ 33. Kh2 Rxa5 34. Be7 Rc8 35. c6 Rxc6 36. Rfd1 e5 37. fxe5 Bxe5+ 38. Kg1 Kg7 39. Rd5 Bf4 40. Bb4 Ra8 41. Rb2 Be3+ 42. Kh2 Bc1 43. Ra2 Rb8 44. Rc2 Bh6 45. Rd7 Bf4+ 46. g3 Be5 47. Kg2 Bf6 48. Rd5 Re6 49. Kf3 Re5 50. Rd7 Rbe8 51. Rb7 Re3+ 52. Kg2 Rb3 53. Rxb5 Ree3 54. g4 Rg3+ 55. Kf2 Bd4+ 56. Kf1 Rg1+ 57. Ke2 Rg2+ 58. Kd1 Rb1+ 0-1

[Event "54th Rubinstein Memorial-A 2018"]
[Site "Polanica-Zdroj"]
[Date "2018.08.21"]
[Round "5"]
[White "Stachowiak, Kamil"]
[Black "Rosicki, Marcin"]
[Result "1/2-1/2"]
[ECO "A15"]
[WhiteElo "2447"]
[BlackElo "2002"]
[Annotator "ChessBase"]
[PlyCount "116"]
[EventDate "2018.08.18"]
[EventType "swiss"]
[EventCountry "POL"]
[SourceTitle "playchess.com"]
[Source "ChessBase"]
[SourceQuality "1"]
[TimeControl "40/5400+30:1800+30"]

1. c4 {[%emt 0:00:00]} Nf6 {[%emt 0:00:00]} 2. Nf3 {[%emt 0:00:00]} g6 {[%emt 0:00:00]} 3. g3 {[%emt 0:00:16]} Bg7 {[%emt 0:00:00]} 4. Bg2 {[%emt 0:00:08]} O-O {[%emt 0:00:01]} 5. Nc3 {[%emt 0:00:16]} d6 {[%emt 0:00:12]} 6. O-O {[%emt 0:00:34]} Nc6 {[%emt 0:00:11]} 7. Rb1 {[%emt 0:04:47]} a6 {[%emt 0:01:22]} 8. b4 {[%emt 0:01:19]} Ng4 {[%emt 0:07:35]} 9. Qc2 {[%emt 0:09:12]} Nge5 {[%emt 0:06:57]} 10. Nxe5 {[%emt 0:00:52]} Nxe5 {[%emt 0:00:09]} 11. d3 {[%emt 0:01:03]} Rb8 {[%emt 0:01:52]} 12. a4 {[%emt 0:08:32]} Bd7 {[%emt 0:06:07]} 13. h3 {[%emt 0:06:49]} Bc6 {[%emt 0:08:42]} 14. e4 {[%emt 0:04:19]} b6 {[%emt 0:01:04]} 15. f4 {[%emt 0:02:49]} Nd7 {[%emt 0:00:13]} 16. Be3 {[%emt 0:00:22]} Bb7 {[%emt 0:18:47]} 17. Rb3 {[%emt 0:21:20]} f5 18. d4 {[%emt 0:12:55]} fxe4 {[%emt 0:23:04]} 19. Nxe4 {[%emt 0:01:20]} Nf6 {[%emt 0:00:08]} 20. Ng5 {[%emt 0:02:04]} Bxg2 {[%emt 0:00:40]} 21. Kxg2 {[%emt 0:05:12]} Qd7 {[%emt 0:00:20]} 22. Rbb1 {[%emt 0:00:41]} Qc6+ {[%emt 0:09:14]} 23. Kh2 {[%emt 0:00:48]} b5 {[%emt 0:00:05]} 24. axb5 {[%emt 0:03:48]} axb5 {[%emt 0:00:08]} 25. c5 {[%emt 0:00:50]} d5 {[%emt 0:03:29]} 26. f5 {[%emt 0:05:26]} h6 {[%emt 0:06:22]} 27. Ne6 {[%emt 0:00:25]} Rfe8 {[%emt 0:01:07]} 28. Nxg7 {[%emt 0:03:50]} Kxg7 {[%emt 0:00:04]} 29. fxg6 {[%emt 0:00:06]} Ne4 {[%emt 0:00:15]} 30. Rf7+ {[%emt 0:01:35]} Kxg6 {[%emt 0:02:35]} 31. Rbf1 {[%emt 0:00:01]} Qe6 {[%emt 0:00:17]} 32. R7f4 {[%emt 0:02:29]} Kg7 {[%emt 0:03:15]} 33. Rh4 {[%emt 0:00:47]} Rh8 {[%emt 0:00:22]} 34. Bf4 {[%emt 0:00:14]} Rbf8 {[%emt 0:00:45]} 35. Qe2 {[%emt 0:00:21]} Ng5 {[%emt 0:01:01]} 36. Be5+ {[%emt 0:01:42]} Kh7 {[%emt 0:00:18]} 37. Rff4 {[%emt 0:00:42]} Rhg8 {[%emt 0:00:47]} 38. Qf1 {[%emt 0:00:32]} Rxf4 {[%emt 0:00:43]} 39. Rxf4 {[%emt 0:00:06]} Ra8 {[%emt 0:00:25]} 40. h4 {[%emt 0:00:00]} Ra2+ {[%emt 0:00:00]} 41. Kh1 {[%emt 0:05:20]} Qh3+ {[%emt 0:21:40]} 42. Qxh3 {[%emt 0:00:09]} Nxh3 {[%emt 0:00:14]} 43. Rf7+ {[%emt 0:02:20]} Kg6 {[%emt 0:00:06]} 44. Rxe7 {[%emt 0:00:08]} c6 {[%emt 0:04:47]} 45. Re6+ {[%emt 0:08:06]} Kf5 {[%emt 0:00:04]} 46. Rxc6 {[%emt 0:00:14]} Nf2+ {[%emt 0:00:09]} 47. Kg1 {[%emt 0:01:08]} Ng4 {[%emt 0:00:09]} 48. Rc8 {[%emt 0:06:42]} Ra1+ {[%emt 0:00:55]} 49. Kg2 {[%emt 0:00:06]} Ra2+ {[%emt 0:00:14]} 50. Kf1 {[%emt 0:02:50]} Ne3+ {[%emt 0:02:45]} 51. Ke1 {[%emt 0:07:22]} Ke4 {[%emt 0:00:15]} 52. Bf4 {[%emt 0:00:58]} Ng2+ {[%emt 0:03:27]} 53. Kf1 {[%emt 0:00:59]} Kf3 {[%emt 0:00:09]} 54. Kg1 {[%emt 0:00:10]} Nxf4 {[%emt 0:00:09]} 55. gxf4 {[%emt 0:00:08]} Ra1+ {[%emt 0:00:04]} 56. Kh2 {[%emt 0:00:05]} Ra2+ {[%emt 0:00:03]} 57. Kh3 {[%emt 0:00:18]} Ra1 {[%emt 0:00:02]} 58. Kh2 {[%emt 0:00:22]} Ra2+ {[%emt 0:00:03]} 1/2-1/2

[Event "54th Rubinstein Memorial-A 2018"]
[Site "Polanica-Zdroj"]
[Date "2018.08.21"]
[Round "5"]
[White "Manik, Mikulas"]
[Black "Sanz Wawer, Daniel"]
[Result "1/2-1/2"]
[ECO "B12"]
[WhiteElo "2408"]
[BlackElo "2180"]
[Annotator "ChessBase"]
[PlyCount "61"]
[EventDate "2018.08.18"]
[EventType "swiss"]
[EventCountry "POL"]
[SourceTitle "playchess.com"]
[Source "ChessBase"]
[SourceQuality "1"]
[TimeControl "40/5400+30:1800+30"]

1. e4 c6 2. d4 d5 3. e5 c5 4. dxc5 e6 5. a3 Bxc5 6. b4 Be7 7. Nf3 a5 8. b5 Nd7 9. Bd3 Qc7 10. Bb2 Nh6 11. O-O Nc5 12. a4 Bd7 13. Nbd2 Rc8 14. Be2 Nf5 15. c4 O-O 16. Rc1 Qb8 17. cxd5 exd5 18. Re1 Rfd8 19. Bf1 Ne4 20. Rxc8 Qxc8 21. Qb3 Be6 22. Qd3 Nc5 23. Qc2 Nh4 24. Nxh4 Bxh4 25. Nf3 Bf5 26. Qd1 Be7 27. Bd4 Qe6 28. Bxc5 Bxc5 29. Bd3 b6 30. Qc2 Bxd3 31. Qxd3 1/2-1/2

[Event "54th Rubinstein Memorial-A 2018"]
[Site "Polanica-Zdroj"]
[Date "2018.08.22"]
[Round "5"]
[White "Sabuk, Piotr"]
[Black "Nurkiewicz, Maciej"]
[Result "1/2-1/2"]
[ECO "A67"]
[WhiteElo "2377"]
[BlackElo "2371"]
[Annotator "NA"]
[PlyCount "60"]
[EventDate "2018.08.18"]
[EventType "swiss"]
[EventCountry "POL"]
[SourceTitle "playchess.com"]
[Source "ChessBase"]
[SourceQuality "1"]
[TimeControl "40/5400+30:1800+30"]

1. d4 {[%emt 0:00:00]} Nf6 {[%emt 0:00:00]} 2. c4 {[%emt 0:00:00]} c5 {[%emt 0:01:14]} 3. d5 {[%emt 0:00:01]} e6 {[%emt 0:00:15]} 4. Nc3 {[%emt 0:00:35]} exd5 {[%emt 0:00:16]} 5. cxd5 {[%emt 0:00:23]} d6 {[%emt 0:00:17]} 6. e4 {[%emt 0:04:16]} g6 {[%emt 0:00:55]} 7. f4 {[%emt 0:04:12]} Bg7 {[%emt 0:00:33]} 8. Bb5+ {[%emt 0:00:25]} Nfd7 {[%emt 0:13:31]} 9. Nf3 {[%emt 0:02:54]} O-O {[%emt 0:00:52]} 10. O-O {[%emt 0:01:06]} a6 {[%emt 0:00:36]} 11. Bd3 {[%emt 0:00:09]} b5 {[%emt 0:01:55]} 12. a3 {[%emt 0:04:32]} Re8 {[%emt 0:28:33]} 13. Kh1 {[%emt 0:01:30]} Bb7 {[%emt 0:06:31]} 14. f5 {[%emt 0:07:17]} Ne5 {[%emt 0:09:01]} 15. Bg5 {[%emt 0:11:29]} Bf6 {[%emt 0:04:22]} 16. fxg6 {[%emt 0:11:19]} Bxg5 {[%emt 0:03:04]} 17. Nxe5 {[%emt 0:05:36]} Rxe5 {[%emt 0:00:10]} 18. Rxf7 {[%emt 0:03:22]} hxg6 {[%emt 0:09:43]} 19. Rxb7 {[%emt 0:01:16]} Qc8 {[%emt 0:00:32]} 20. Rb6 {[%emt 0:07:46]} Qc7 {[%emt 0:00:16]} 21. Qf3 {[%emt 0:04:25]} Qxb6 {[%emt 0:00:20]} 22. Rf1 {[%emt 0:00:07]} Ra7 {[%emt 0:10:08]} 23. Qf8+ {[%emt 0:00:56]} Kh7 {[%emt 0:00:02]} 24. Rf7+ {[%emt 0:06:43]} Rxf7 {[%emt 0:00:08]} 25. Qxf7+ {[%emt 0:00:05]} Kh8 {[%emt 0:00:12]} 26. Qf8+ {[%emt 0:00:25]} Kh7 {[%emt 0:00:05]} 27. Qf7+ {[%emt 0:00:09]} Kh8 {[%emt 0:00:04]} 28. Qf8+ {[%emt 0:00:09]} Kh7 {[%emt 0:00:06]} 29. Qf7+ {[%emt 0:00:27]} Kh8 {[%emt 0:00:08]} 30. Qf8+ {[%emt 0:00:05]} Kh7 1/2-1/2

[Event "54th Rubinstein Memorial-A 2018"]
[Site "Polanica-Zdroj"]
[Date "2018.08.21"]
[Round "5"]
[White "Nurkiewicz, Maciej"]
[Black "Psyk, Radoslaw"]
[Result "1-0"]
[ECO "B44"]
[WhiteElo "2371"]
[BlackElo "2304"]
[Annotator "NA"]
[PlyCount "111"]
[EventDate "2018.08.18"]
[EventType "swiss"]
[EventCountry "POL"]
[SourceTitle "playchess.com"]
[Source "ChessBase"]
[SourceQuality "1"]
[TimeControl "40/5400+30:1800+30"]

1. e4 c5 2. Nf3 e6 3. d4 cxd4 4. Nxd4 Nc6 5. Nb5 d6 6. c4 Nf6 7. N1c3 a6 8. Na3 Be7 9. Be2 O-O 10. O-O b6 11. Be3 Ne5 12. f3 Bb7 13. Qb3 Ned7 14. Rfd1 Qc7 15. Rac1 Rac8 16. Kh1 Rfe8 17. Bf1 Bf8 18. Qc2 Qb8 19. Qf2 d5 20. cxd5 exd5 21. Nxd5 Nxd5 22. Rxc8 Rxc8 23. exd5 b5 24. Bd3 Nf6 25. Qh4 Qd6 26. Bf5 Rd8 27. Bf4 Qb6 28. Be5 h6 29. d6 Qe3 30. Bxf6 gxf6 31. d7 Bc5 32. Re1 Qxf3 33. Bh3 Qc6 34. Qg3+ Kf8 35. Qf4 f5 36. Qe5 f6 37. Qxf5 Bb4 38. Rf1 Be7 39. Nc2 Qe4 40. Qf2 Qd3 41. Bf5 Be4 42. Bxe4 Qxe4 43. Qd2 Kf7 44. Re1 Qf5 45. Rd1 Bc5 46. h3 h5 47. Qd5+ Qxd5 48. Rxd5 Bb6 49. Nd4 Bxd4 50. Rxd4 Ke6 51. Kh2 h4 52. g3 Ke5 53. Rd1 hxg3+ 54. Kxg3 Ke4 55. Kg4 b4 56. h4 {Kd5} 1-0

[Event "54th Rubinstein Memorial-A 2018"]
[Site "Polanica-Zdroj"]
[Date "2018.08.21"]
[Round "5"]
[White "Djuric, Stefan"]
[Black "Sabuk, Piotr"]
[Result "0-1"]
[ECO "D41"]
[WhiteElo "2352"]
[BlackElo "2377"]
[Annotator "NA"]
[PlyCount "118"]
[EventDate "2018.08.18"]
[EventType "swiss"]
[EventCountry "POL"]
[SourceTitle "playchess.com"]
[Source "ChessBase"]
[SourceQuality "1"]
[TimeControl "40/5400+30:1800+30"]

1. d4 {[%emt 0:09:51]} Nf6 {[%emt 0:00:00]} 2. c4 {[%emt 0:00:13]} e6 {[%emt 0:00:00]} 3. Nf3 {[%emt 0:00:19]} d5 {[%emt 0:00:25]} 4. Nc3 {[%emt 0:00:56]} c5 {[%emt 0:00:19]} 5. cxd5 {[%emt 0:00:27]} Nxd5 {[%emt 0:00:24]} 6. e3 {[%emt 0:03:46]} cxd4 {[%emt 0:00:39]} 7. exd4 {[%emt 0:00:12]} Nxc3 {[%emt 0:00:32]} 8. bxc3 {[%emt 0:00:14]} Qc7 {[%emt 0:00:13]} 9. Bb5+ {[%emt 0:05:08]} Nd7 {[%emt 0:08:11]} 10. O-O {[%emt 0:00:37]} Bd6 {[%emt 0:03:46]} 11. c4 {[%emt 0:18:51]} O-O {[%emt 0:14:03]} 12. c5 {[%emt 0:01:02]} Be7 {[%emt 0:05:22]} 13. Re1 {[%emt 0:02:28]} Rd8 {[%emt 0:03:15]} 14. Bd2 {[%emt 0:07:16]} Nf6 {[%emt 0:12:17]} 15. Qa4 {[%emt 0:11:22]} Bd7 {[%emt 0:08:17]} 16. Bxd7 {[%emt 0:03:20]} Qxd7 {[%emt 0:02:17]} 17. Qxd7 {[%emt 0:00:31]} Rxd7 {[%emt 0:12:43]} 18. Rab1 {[%emt 0:05:52]} h6 {[%emt 0:01:44]} 19. h3 {[%emt 0:03:12]} b6 {[%emt 0:06:37]} 20. Rec1 {[%emt 0:00:47]} Nd5 {[%emt 0:00:59]} 21. a4 {[%emt 0:04:53]} Rc7 {[%emt 0:00:50]} 22. cxb6 {[%emt 0:01:49]} Rxc1+ {[%emt 0:00:22]} 23. Rxc1 {[%emt 0:00:12]} axb6 {[%emt 0:00:56]} 24. Rc4 {[%emt 0:00:51]} f6 {[%emt 0:02:03]} 25. Kf1 {[%emt 0:02:03]} Kf7 {[%emt 0:00:06]} 26. Ke2 {[%emt 0:02:10]} Bb4 {[%emt 0:01:55]} 27. Ne1 {[%emt 0:05:22]} Bd6 {[%emt 0:06:23]} 28. Nd3 {[%emt 0:01:14]} g5 {[%emt 0:01:39]} 29. Kd1 {[%emt 0:00:39]} h5 {[%emt 0:01:10]} 30. Kc2 {[%emt 0:02:29]} h4 {[%emt 0:04:25]} 31. Kb3 {[%emt 0:00:16]} Rh8 {[%emt 0:02:50]} 32. f3 {[%emt 0:00:46]} Ke7 {[%emt 0:00:44]} 33. Nf2 {[%emt 0:02:34]} Kd7 {[%emt 0:00:17]} 34. Ne4 {[%emt 0:00:27]} Bf4 {[%emt 0:00:34]} 35. Rc2 {[%emt 0:03:01]} Rg8 {[%emt 0:00:36]} 36. Nc3 {[%emt 0:00:42]} Bxd2 {[%emt 0:00:23]} 37. Nxd5 {[%emt 0:00:23]} exd5 {[%emt 0:00:05]} 38. Rxd2 {[%emt 0:00:11]} Re8 {[%emt 0:00:12]} 39. Kb4 {[%emt 0:01:20]} Re1 {[%emt 0:00:37]} 40. Rb2 {[%emt 0:00:00]} Kc6 {[%emt 0:00:00]} 41. Rc2+ {[%emt 0:02:06]} Kd6 {[%emt 0:06:56]} 42. Rb2 {[%emt 0:03:38]} Kc6 {[%emt 0:02:25]} 43. a5 {[%emt 0:01:04]} bxa5+ {[%emt 0:02:38]} 44. Kxa5 {[%emt 0:00:11]} Ra1+ {[%emt 0:00:35]} 45. Kb4 {[%emt 0:00:02]} Rc1 {[%emt 0:00:33]} 46. Ka5 {[%emt 0:04:57]} Kd7 {[%emt 0:05:00]} 47. Rb7+ {[%emt 0:09:45]} Ke6 {[%emt 0:00:08]} 48. Rb6+ {[%emt 0:00:04]} Kf5 {[%emt 0:02:56]} 49. Rd6 {[%emt 0:01:04]} Rc2 {[%emt 0:01:29]} 50. Rxd5+ {[%emt 0:01:54]} Kf4 {[%emt 0:00:37]} 51. Rc5 {[%emt 0:07:46]} Rxg2 {[%emt 0:02:55]} 52. Kb6 {[%emt 0:00:29]} Kxf3 {[%emt 0:04:52]} 53. d5 {[%emt 0:00:19]} g4 {[%emt 0:02:17]} 54. Rc3+ {[%emt 0:01:46]} Ke4 {[%emt 0:00:36]} 55. d6 {[%emt 0:00:33]} g3 {[%emt 0:02:10]} 56. Kc7 {[%emt 0:03:51]} Rd2 {[%emt 0:00:17]} 57. Rc4+ {[%emt 0:00:14]} Ke5 {[%emt 0:01:39]} 58. d7 {[%emt 0:00:26]} f5 {[%emt 0:00:44]} 59. Rc5+ {[%emt 0:00:44]} Ke4 {[%emt 0:00:47]} 0-1

[Event "54th Rubinstein Memorial-A 2018"]
[Site "Polanica-Zdroj"]
[Date "2018.08.21"]
[Round "5"]
[White "Nowak, Kamil"]
[Black "Walkusz, Witoslaw"]
[Result "1/2-1/2"]
[ECO "D85"]
[WhiteElo "2313"]
[BlackElo "2121"]
[Annotator "NA"]
[PlyCount "61"]
[EventDate "2018.08.18"]
[EventType "swiss"]
[EventCountry "POL"]
[SourceTitle "playchess.com"]
[Source "ChessBase"]
[SourceQuality "1"]
[TimeControl "40/5400+30:1800+30"]

1. d4 {[%emt 0:00:00]} Nf6 {[%emt 0:00:00]} 2. c4 {[%emt 0:00:00]} g6 {[%emt 0:00:00]} 3. Nc3 {[%emt 0:00:21]} d5 {[%emt 0:00:04]} 4. cxd5 {[%emt 0:00:13]} Nxd5 {[%emt 0:00:05]} 5. Na4 {[%emt 0:00:14]} Bg7 {[%emt 0:01:08]} 6. e4 {[%emt 0:00:27]} Nb6 {[%emt 0:00:45]} 7. Be3 {[%emt 0:00:18]} Nxa4 {[%emt 0:01:07]} 8. Qxa4+ {[%emt 0:00:07]} Bd7 {[%emt 0:05:29]} 9. Qb3 {[%emt 0:11:06]} Nc6 {[%emt 0:01:55]} 10. Nf3 {[%emt 0:00:58]} O-O {[%emt 0:00:48]} 11. h3 {[%emt 0:06:59]} b6 {[%emt 0:15:26]} 12. Be2 {[%emt 0:02:05]} e5 {[%emt 0:02:27]} 13. Rd1 {[%emt 0:16:13]} Nxd4 {[%emt 0:04:20]} 14. Nxd4 {[%emt 0:00:51]} exd4 {[%emt 0:00:35]} 15. Bxd4 {[%emt 0:00:04]} Bxd4 {[%emt 0:02:10]} 16. Rxd4 {[%emt 0:01:10]} c5 {[%emt 0:06:14]} 17. Rd2 {[%emt 0:03:46]} Qe7 {[%emt 0:02:38]} 18. O-O {[%emt 0:00:36]} Be6 {[%emt 0:00:54]} 19. Qe3 {[%emt 0:00:31]} Rfd8 {[%emt 0:01:50]} 20. Rfd1 {[%emt 0:00:25]} Rxd2 {[%emt 0:00:15]} 21. Rxd2 {[%emt 0:00:14]} Rd8 {[%emt 0:00:02]} 22. b3 {[%emt 0:00:48]} Rxd2 {[%emt 0:01:55]} 23. Qxd2 {[%emt 0:00:20]} Qd7 {[%emt 0:03:12]} 24. Qxd7 {[%emt 0:00:28]} Bxd7 {[%emt 0:00:05]} 25. f4 {[%emt 0:07:06]} Bc6 {[%emt 0:02:49]} 26. Bd3 {[%emt 0:00:13]} b5 {[%emt 0:08:46]} 27. Kf2 {[%emt 0:03:15]} f6 {[%emt 0:01:03]} 28. Ke3 {[%emt 0:00:11]} Kf7 {[%emt 0:00:27]} 29. g3 {[%emt 0:00:25]} h6 {[%emt 0:01:04]} 30. h4 {[%emt 0:00:56]} Ke6 {[%emt 0:02:29]} 31. Be2 {[%emt 0:01:44]} 1/2-1/2